fUSD/lending_fUSD_20251120
["ID","MTS","AMOUNT","RATE_DAILY","PERIOD"]
[394461562,1763599832236,-300.0,0.00017534,2]
[394461563,1763599832245,-416.99,0.00017534,2]
[394461564,1763599832254,-150.0,0.00017534,2]
[394461565,1763599832265,-150.0,0.00017534,2]
[394461566,1763599832275,-150.0,0.00017534,2]
[394461567,1763599832284,-416.35,0.00017534,2]
[394461568,1763599832293,-150.0,0.00017534,2]
[394461569,1763599832302,-300.0,0.00017534,2]
[394461570,1763599832311,-300.0,0.00017534,2]
[394461571,1763599832320,-354.9,0.00017534,2]
[394461572,1763599832329,-211.82,0.00017535,2]
[394461573,1763599832338,-150.0,0.00017542,2]
[394461574,1763599832348,-150.0,0.0001755,2]
[394461575,1763599832357,-150.0,0.0001755,2]
[394461576,1763599832366,-382.0,0.00017565,2]
[394461577,1763599832376,-280.4094,0.00017584,2]
[394461578,1763599832386,-150.0,0.000176,2]
[394461579,1763599832395,-300.0,0.000176,2]
[394461580,1763599832404,-150.0,0.000176,2]
[394461581,1763599832414,-300.0,0.000176,2]
[394461582,1763599832423,-150.0,0.0001764,2]
[394461583,1763599832432,-150.0,0.0001764,2]
[394461584,1763599832441,-151.0,0.00017643,2]
[394461585,1763599832451,-222.35315505,0.00017667,2]
[394461586,1763599832460,-150.0,0.00017743,2]
[394461587,1763599832470,-150.0,0.00017743,2]
[394461588,1763599832479,-382.0,0.00017749,2]
[394461589,1763599832488,-187.32,0.00017752,2]
[394461590,1763599832498,-151.0,0.00017776,2]
[394461591,1763599832507,-151.0,0.00017779,2]
[394461592,1763599832519,-382.0,0.00017783,2]
[394461593,1763599832529,-166.66666666,0.000178,2]
[394461594,1763599832538,-1000.0,0.000178,2]
[394461595,1763599832548,-1115.8303,0.000178,2]
[394461596,1763599832558,-167.62964537,0.000178,2]
[394461597,1763599832568,-4314.23484864,0.000178,2]
[394461598,1763599832577,-2500.0,0.000178,2]
[394461599,1763599832587,-4314.23484857,0.00017811,2]
[394461600,1763599832597,-2455.23065,0.0001782,2]
[394461601,1763599832607,-4314.23484857,0.00017822,2]
[394461602,1763599832616,-4314.23484857,0.00017833,2]
[394461603,1763599832625,-4314.23484857,0.00017844,2]
[394461604,1763599832635,-1072.582,0.00017855,2]
[394461605,1763599832644,-160.38698977,0.00017855,2]
[394461606,1763599832653,-4314.23484857,0.00017856,2]
[394461607,1763599832662,-4314.23484857,0.00017867,2]
[394461608,1763599832671,-500.0,0.00017873,2]
[394461609,1763599832681,-502.09883143,0.00017873,2]
[394461610,1763599832690,-500.0,0.00017873,2]
[394461611,1763599832699,-502.49968181,0.00017873,2]
[394461612,1763599832709,-545.08334902,0.00017873,2]
[394461613,1763599832718,-500.0,0.00017873,2]
[394461614,1763599832727,-501.18852311,0.00017873,2]
[394461615,1763599832736,-500.0,0.00017873,2]
[394461616,1763599832746,-500.0,0.00017873,2]
[394461617,1763599832754,-468.8415485,0.00017873,2]
[394461618,1763599832767,-500.0,0.00017873,2]
[394461619,1763599832776,-151.0,0.00017875,2]
[394461620,1763599832785,-4314.23484857,0.00017878,2]
[394461621,1763599832795,-4314.23484857,0.00017889,2]
[394461622,1763599832804,-305.36299705,0.00017899,2]
[394461623,1763599832813,-500.0,0.00017899,2]
[394461624,1763599832822,-500.0,0.00017899,2]
[394461625,1763599832831,-500.0,0.00017899,2]
[394461626,1763599832840,-500.0,0.00017899,2]
[394461627,1763599832849,-500.0,0.00017899,2]
[394461628,1763599832859,-500.0,0.00017899,2]
[394461629,1763599832868,-500.0,0.00017899,2]
[394461630,1763599832877,-500.0,0.00017899,2]
[394461631,1763599832886,-500.0,0.00017899,2]
[394461632,1763599832895,-500.0,0.00017899,2]
[394461633,1763599832905,-500.0,0.00017899,2]
[394461634,1763599832915,-500.0,0.00017899,2]
[394461635,1763599832925,-500.0,0.00017899,2]
[394461636,1763599832934,-500.0,0.00017899,2]
[394461637,1763599832943,-500.0,0.00017899,2]
[394461638,1763599832952,-500.0,0.00017899,2]
[394461639,1763599832961,-500.0,0.00017899,2]
[394461640,1763599832971,-500.0,0.00017899,2]
[394461641,1763599832980,-500.0,0.00017899,2]
[394461642,1763599832989,-500.0,0.00017899,2]
[394461643,1763599832998,-318.30992831,0.00017899,2]
[394461644,1763599833008,-500.0,0.00017899,2]
[394461645,1763599833019,-500.0,0.00017899,2]
[394461646,1763599833028,-500.0,0.00017899,2]
[394461647,1763599833037,-500.0,0.00017899,2]
[394461648,1763599833046,-500.0,0.00017899,2]
[394461649,1763599833061,-500.0,0.00017899,2]
[394461650,1763599833071,-500.0,0.00017899,2]
[394461651,1763599833080,-500.0,0.00017899,2]
[394461652,1763599833090,-500.0,0.00017899,2]
[394461653,1763599833100,-500.0,0.00017899,2]
[394461654,1763599833110,-500.0,0.00017899,2]
[394461655,1763599833119,-500.0,0.00017899,2]
[394461656,1763599833128,-500.0,0.00017899,2]
[394461657,1763599833139,-500.0,0.00017899,2]
[394461658,1763599833148,-500.0,0.00017899,2]
[394461659,1763599833158,-500.0,0.00017899,2]
[394461660,1763599833167,-500.0,0.00017899,2]
[394461661,1763599833176,-588.25964794,0.00017899,2]
[394461662,1763599833185,-1000.0,0.000179,2]
[394461663,1763599833194,-4314.23484857,0.000179,2]
[394461664,1763599833204,-52.95403406,0.000179,2]
[394461681,1763599837983,-1065.51014317,0.000179,2]
[394461682,1763599837993,-211.31993203,0.000179,2]
[394461683,1763599838002,-300.0,0.00017925,2]
[394461684,1763599838011,-500.0,0.00017972,2]
[394461685,1763599838021,-500.0,0.00017973,2]
[394461686,1763599838035,-500.0,0.00017973,2]
[394461688,1763599838044,-500.0,0.00017973,2]
[394461690,1763599838055,-500.0,0.00017973,2]
[394461691,1763599838066,-500.0,0.00017973,2]
[394461692,1763599838076,-500.0,0.00017973,2]
[394461693,1763599838086,-500.0,0.00017973,2]
[394461695,1763599838097,-500.0,0.00017973,2]
[394461697,1763599838108,-500.0,0.00017973,2]
[394461698,1763599838117,-500.0,0.00017973,2]
[394461700,1763599838126,-457.63452341,0.00017973,2]
[394461702,1763599838136,-500.0,0.00017973,2]
[394461704,1763599838146,-316.95195068,0.00017973,2]
[394461706,1763599838157,-183.04804932,0.00017973,2]
[394461708,1763599838166,-500.0,0.00017973,2]
[394461710,1763599838176,-500.0,0.00017973,2]
[394461712,1763599838185,-629.01704566,0.00017973,2]
[394461714,1763599838194,-500.0,0.00017973,2]
[394461716,1763599838203,-500.0,0.00017973,2]
[394461718,1763599838214,-500.0,0.00017973,2]
[394461721,1763599838223,-508.65666473,0.00017973,2]
[394461723,1763599838232,-500.0,0.00017973,2]
[394461724,1763599838242,-500.0,0.00017973,2]
[394461727,1763599838252,-500.0,0.00017973,2]
[394461729,1763599838261,-500.0,0.00017973,2]
[394461731,1763599838274,-500.0,0.00017973,2]
[394461733,1763599838284,-500.0,0.00017973,2]
[394461735,1763599838293,-500.0,0.00017973,2]
[394461736,1763599838305,-1563.52,0.00017973,2]
[394461739,1763599838317,-609.0,0.0001798,2]
[394461741,1763599838327,-585.404,0.0001798,2]
[394461743,1763599838336,-3433.0,0.0001798,2]
[394461745,1763599838346,-1319.0,0.0001798,2]
[394461747,1763599838355,-1600.0,0.0001798,2]
[394461748,1763599838365,-822.0,0.0001798,2]
[394461750,1763599838375,-1276.0,0.0001798,2]
[394461752,1763599838384,-794.0,0.0001798,2]
[394461753,1763599838393,-561.0,0.0001798,2]
[394461754,1763599838403,-6492.0,0.0001798,2]
[394461755,1763599838412,-1605.0,0.0001798,2]
[394461756,1763599838421,-189.08580003,0.00017996,2]
[394461757,1763599838431,-500.0,0.00017996,2]
[394461758,1763599838440,-421.4604201,0.00017996,2]
[394461759,1763599838450,-191.25585416,0.00017996,2]
[394461760,1763599838459,-1489.8791451,0.00017997,2]
[394461761,1763599838468,-105725.650269,0.00017997,2]
[394461762,1763599838477,-188020.5977185,0.00017997,2]
[394461763,1763599838487,-151.0,0.00017997,2]
[394461764,1763599838496,-300.0,0.00017999,2]
[394461765,1763599838505,-300.0,0.00017999,2]
[394461766,1763599838514,-500.0,0.00017999,2]
[394461767,1763599838526,-500.0,0.00017999,2]
[394461768,1763599838535,-500.0,0.00017999,2]
[394461769,1763599838545,-500.0,0.00017999,2]
[394461770,1763599838554,-500.0,0.00017999,2]
[394461771,1763599838564,-500.0,0.00017999,2]
[394461772,1763599838573,-161.05676555,0.00017999,2]
[394461773,1763599838583,-1651.0,0.00018,2]
[394461774,1763599838594,-150.0,0.00018,2]
[394461775,1763599838603,-250.74753607,0.00018,2]
[394461776,1763599838613,-256.73285863,0.00018,2]
[394461777,1763599838622,-150.0,0.00018,2]
[394461778,1763599838631,-150.0,0.00018,2]
[394461779,1763599838642,-150.0,0.00018,2]
[394461780,1763599838651,-150.0,0.00018,2]
[394461781,1763599838661,-574811.70799933,0.00018,2]
[394461782,1763599838700,-14144.00891326,0.00018,2]
[394461784,1763599839568,-607.49999996,0.0001798,2]
[394461785,1763599839757,-97.50000004,0.0001798,2]
[394461786,1763599839766,-902.45999996,0.00018,2]
[394461787,1763599839785,-549.74519758,0.00018,2]
[394461788,1763599839795,-844.586292,0.00018,2]
[394461789,1763599839831,-386.79581326,0.00018,2]
[394461833,1763599843077,-232.98646754,0.00016873,2]
[394461834,1763599843086,-1937.10353246,0.00018,2]
[394461835,1763599843099,-438.15202411,0.00018,2]
[394461836,1763599843129,-24144.37123561,0.00018,2]
[394461837,1763599843141,-1406.63600046,0.00018,2]
[394461838,1763599843812,-1445.930486,0.00018,2]
[394461873,1763599845602,-6871.4,0.00018,2]
[394461874,1763599845654,-884.57785651,0.00018,2]
[394461875,1763599845667,-937.59999,0.00018,2]
[394461879,1763599900319,160.0,0.000328,120]
[394461880,1763599901419,160.0,0.000328,120]
[394461882,1763599917867,160.0,0.000328,120]
[394461913,1763600270628,154.71,8.24e-05,2]
[394461914,1763600270849,154.71,8.989e-05,2]
[394461915,1763600271071,154.71,9.739e-05,2]
[394461916,1763600271289,154.71,0.00010488,2]
[394461917,1763600271519,154.71,0.00011237,2]
[394461918,1763600273661,154.71,0.00011986,2]
[394461919,1763600273879,154.71,0.00012735,2]
[394461920,1763600274258,154.71,0.00013484,2]
[394461921,1763600274300,154.71,0.00014233,2]
[394461922,1763600274539,154.71,0.00014982,2]
[394461923,1763600274772,154.71,0.00015732,2]
[394461978,1763600606047,225.95063385,0.0004204,120]
[394461989,1763600634122,258.31877805,0.0004204,120]
[394462344,1763600853439,9845.3,0.00016083,2]
[394462345,1763600853460,10000.01,0.00016083,2]
[394462346,1763600853482,8446.06,0.00016083,2]
[394462367,1763600959197,166.66,0.00015618,2]
[394462368,1763600959337,166.66,0.00015947,2]
[394462386,1763600989179,200.0,0.00016012,2]
[394462414,1763601031799,-150.0,0.000162,2]
[394462415,1763601031810,-250.0,0.00016238,2]
[394462416,1763601031819,-166.66,0.00016275,2]
[394462417,1763601031828,-154.6410347,0.0001646,2]
[394462418,1763601031838,-154.71,0.00016481,2]
[394462419,1763601031848,-1590.82,0.00016551,2]
[394462420,1763601031858,-150.0,0.0001656,2]
[394462421,1763601031867,-166.66,0.00016604,2]
[394462422,1763601031877,-83.63362512,0.00016669,2]
[394462423,1763601031904,-315.58304838,0.00016669,2]
[394462424,1763601031915,-684.40695162,0.00016669,2]
[394462512,1763601037717,-768.79637488,0.00016669,2]
[394462513,1763601037730,-156.00669793,0.0001672,2]
[394462514,1763601037742,-209.79454154,0.00016799,2]
[394462515,1763601037754,-550.0,0.00016801,2]
[394462516,1763601037766,-300.0,0.00016801,2]
[394462517,1763601037778,-1200.0,0.00016801,2]
[394462518,1763601037790,-300.0,0.00016801,2]
[394462519,1763601037802,-500.0,0.00016801,2]
[394462520,1763601037814,-500.0,0.00016801,2]
[394462521,1763601037826,-500.0,0.00016801,2]
[394462522,1763601037837,-561.58798518,0.00016801,2]
[394462523,1763601037848,-1000.0,0.00016802,2]
[394462525,1763601037860,-12156.96897293,0.00016802,2]
[394462526,1763601037873,-435.0150005,0.00016802,2]
[394462528,1763601037890,-14658.0739438,0.00016802,2]
[394462529,1763601037932,-544.38170658,0.00016802,2]
[394462530,1763601037945,-291.57666744,0.00016802,2]
[394462531,1763601037958,-1661.564946,0.00016802,2]
[394462537,1763601039695,-58222.83698295,0.00016802,2]
[394462538,1763601039753,-256.640002,0.00016802,2]
[394462539,1763601039767,-290.65933611,0.00016802,2]
[394462540,1763601039782,-1041.40145088,0.00016802,2]
[394462541,1763601039795,-15475.69614736,0.00016802,2]
[394462542,1763601039809,-1417.50000004,0.00016802,2]
[394462543,1763601039822,-325.929999,0.00016802,2]
[394462544,1763601039921,-100364.890624,0.00016802,2]
[394462545,1763601039934,-396.42060508,0.00016802,2]
[394462546,1763601039978,-10078.75992589,0.00016802,2]
[394462547,1763601039991,-500.0,0.00016802,2]
[394462548,1763601040015,-1122.54034173,0.00016802,2]
[394462549,1763601040034,-459.995,0.00016802,2]
[394462557,1763601043478,-354.9,0.000168,2]
[394462558,1763601043487,-4065.1,0.00016802,2]
[394462559,1763601044439,-3166.68514934,0.00016802,2]
[394462560,1763601044450,-870.7,0.00016802,2]
[394462564,1763601045821,-7224.85637906,0.00016802,2]
[394462565,1763601045877,-472.53454777,0.00016802,2]
[394462567,1763601046145,-2811.715,0.00016802,2]
[394462568,1763601046156,-272.47380231,0.00016802,2]
[394462575,1763601062888,500.0,0.000161,2]
[394462589,1763601091477,150.0,0.0004204,30]
[394462692,1763601516871,524.02,0.00015889,2]
[394462704,1763601574827,1000.0,0.00015924,2]
[394462705,1763601577780,340.84,0.00015949,2]
[394462717,1763601632023,1000.0,0.00042039,120]
[394462718,1763601640069,1000.0,0.00042039,120]
[394462720,1763601696733,-326.45195804,0.00016366,2]
[394462721,1763601696761,-250.0,0.00016466,2]
[394462722,1763601696788,-300.0,0.00016466,2]
[394462723,1763601696810,-244.94300673,0.00016466,2]
[394462724,1763601696834,-333.2322,0.00016471,2]
[394462725,1763601696857,-150.0,0.00016472,2]
[394462726,1763601696880,-200.0,0.00016514,2]
[394462727,1763601696903,-166.66,0.00016524,2]
[394462728,1763601696926,-222.35315505,0.00016617,2]
[394462729,1763601696949,-1200.0,0.00016699,2]
[394462730,1763601696971,-1200.0,0.000167,2]
[394462731,1763601696992,-300.0,0.000167,2]
[394462732,1763601697015,-1000.0,0.00016702,2]
[394462733,1763601697039,-2500.0,0.00016702,2]
[394462734,1763601697061,-550.0,0.0001673,2]
[394462735,1763601697084,-858.065,0.0001673,2]
[394462736,1763601697106,-9536.29468018,0.00016731,2]
[394462738,1763601792305,500.0,0.0003093,120]
[394462739,1763601792660,500.0,0.0003243,120]
[394462740,1763601797820,511.954132,0.0003093,120]
[394462741,1763601798992,150.0,0.0001606,2]
[394462742,1763601801433,500.0,0.0003093,120]
[394462743,1763601802023,500.0,0.00032719,120]
[394462757,1763601935986,999.0,0.00015968,3]
[394462777,1763602061822,160.0,0.000161,2]
[394462778,1763602064108,760.39,0.00015861,2]
[394462780,1763602067554,160.0,0.000161,2]
[394462796,1763602209312,796.25306733,0.00042039,120]
[394462797,1763602210336,163.0,0.00042039,30]
[394462798,1763602211963,352.316127,0.00042039,120]
[394462800,1763602212113,162.67210099,0.00042039,120]
[394462801,1763602212644,206.97524322,0.00042039,120]
[394462802,1763602213836,168.86720548,0.00042039,120]
[394462803,1763602216138,1444.84977439,0.00042039,120]
[394462804,1763602216650,154.93471163,0.00042039,120]
[394462806,1763602218559,232.66734682,0.00042039,120]
[394462807,1763602224187,196.500824,0.00042039,120]
[394462815,1763602231966,-150.0,0.000162,2]
[394462816,1763602231978,-142.9772869,0.00016275,2]
[394462817,1763602231990,-159.45248877,0.00016275,2]
[394462818,1763602232003,-234.10775697,0.0001635,2]
[394462819,1763602232015,-15.89224303,0.0001635,2]
[394462820,1763602232025,-2749.87,0.00016438,2]
[394462821,1763602232034,-300.0,0.00016446,2]
[394462822,1763602232043,-300.0,0.00016446,2]
[394462823,1763602232053,-160.0,0.000165,2]
[394462824,1763602232062,-2500.0,0.00016573,2]
[394462825,1763602232074,-1200.0,0.0001658,2]
[394462826,1763602232083,-530.26213893,0.00016581,2]
[394462827,1763602232092,-300.0,0.000166,2]
[394462828,1763602232101,-167.29710052,0.000166,2]
[394462829,1763602232111,-2317.07694705,0.00016601,2]
[394462830,1763602232120,-168.21077642,0.00016601,2]
[394462831,1763602232129,-222.35315505,0.0001664,2]
[394462832,1763602232138,-155.53913115,0.0001667,2]
[394462833,1763602232147,-550.0,0.00016671,2]
[394462834,1763602232157,-500.0,0.00016672,2]
[394462835,1763602232166,-500.0,0.00016672,2]
[394462836,1763602232175,-500.0,0.00016672,2]
[394462837,1763602232184,-500.0,0.00016672,2]
[394462838,1763602232196,-500.0,0.00016672,2]
[394462839,1763602232208,-150.78430682,0.00016672,2]
[394462840,1763602232218,-500.0,0.00016672,2]
[394462841,1763602232228,-500.0,0.00016672,2]
[394462842,1763602232237,-500.0,0.00016672,2]
[394462843,1763602232247,-516.70066677,0.00016672,2]
[394462844,1763602232256,-500.0,0.00016672,2]
[394462845,1763602232266,-500.0,0.00016672,2]
[394462846,1763602232275,-240.64950594,0.00016672,2]
[394462847,1763602232284,-500.0,0.00016672,2]
[394462848,1763602232293,-500.0,0.00016672,2]
[394462849,1763602232302,-500.0,0.00016672,2]
[394462850,1763602232311,-500.0,0.00016672,2]
[394462851,1763602232322,-500.0,0.00016672,2]
[394462852,1763602232331,-500.0,0.00016672,2]
[394462853,1763602232340,-500.0,0.00016672,2]
[394462854,1763602232350,-500.0,0.00016672,2]
[394462855,1763602232359,-500.0,0.00016672,2]
[394462856,1763602232368,-500.0,0.00016672,2]
[394462857,1763602232377,-500.0,0.00016672,2]
[394462858,1763602232387,-500.0,0.00016672,2]
[394462859,1763602232396,-500.0,0.00016672,2]
[394462860,1763602232405,-500.0,0.00016672,2]
[394462861,1763602232415,-500.0,0.00016672,2]
[394462862,1763602232424,-500.0,0.00016672,2]
[394462864,1763602232434,-500.0,0.00016672,2]
[394462865,1763602232444,-500.0,0.00016672,2]
[394462866,1763602232453,-500.0,0.00016672,2]
[394462867,1763602232462,-500.0,0.00016672,2]
[394462868,1763602232472,-500.0,0.00016672,2]
[394462869,1763602232481,-500.0,0.00016672,2]
[394462870,1763602232491,-500.0,0.00016672,2]
[394462871,1763602232500,-453.88026725,0.00016672,2]
[394462872,1763602232509,-500.0,0.00016672,2]
[394462873,1763602232519,-500.0,0.00016672,2]
[394462874,1763602232532,-500.0,0.00016672,2]
[394462875,1763602232542,-500.0,0.00016672,2]
[394462876,1763602232551,-500.0,0.00016672,2]
[394462877,1763602232561,-500.0,0.00016672,2]
[394462878,1763602232572,-500.0,0.00016672,2]
[394462879,1763602232581,-500.0,0.00016672,2]
[394462880,1763602232600,-500.0,0.00016672,2]
[394462881,1763602232611,-500.0,0.00016672,2]
[394462882,1763602232621,-500.0,0.00016672,2]
[394462883,1763602232632,-500.0,0.00016672,2]
[394462884,1763602232641,-500.0,0.00016672,2]
[394462885,1763602232651,-500.0,0.00016672,2]
[394462886,1763602232661,-500.0,0.00016672,2]
[394462887,1763602232675,-500.0,0.00016672,2]
[394462888,1763602232686,-500.0,0.00016672,2]
[394462889,1763602232696,-500.0,0.00016672,2]
[394462890,1763602232707,-500.0,0.00016672,2]
[394462891,1763602232716,-500.0,0.00016672,2]
[394462892,1763602232726,-245.04623485,0.00016672,2]
[394462893,1763602232736,-500.0,0.00016672,2]
[394462894,1763602232746,-500.0,0.00016672,2]
[394462895,1763602232756,-500.0,0.00016672,2]
[394462896,1763602232765,-500.0,0.00016672,2]
[394462897,1763602232774,-275.02568603,0.00016672,2]
[394462898,1763602232784,-500.0,0.00016672,2]
[394462899,1763602232794,-500.0,0.00016672,2]
[394462900,1763602232804,-275.02568603,0.00016672,2]
[394462901,1763602232813,-500.0,0.00016672,2]
[394462902,1763602232823,-500.0,0.00016672,2]
[394462903,1763602232833,-275.02568603,0.00016672,2]
[394462904,1763602232844,-500.0,0.00016672,2]
[394462905,1763602232853,-500.0,0.00016672,2]
[394462906,1763602232862,-275.02568603,0.00016672,2]
[394462907,1763602232872,-160.99706411,0.00016672,2]
[394462908,1763602232881,-500.0,0.00016672,2]
[394462909,1763602232892,-614.02862192,0.00016672,2]
[394462910,1763602232903,-500.0,0.00016672,2]
[394462911,1763602232912,-500.0,0.00016672,2]
[394462912,1763602232921,-489.8553575,0.00016672,2]
[394462913,1763602232934,-87372.84194615,0.00016673,2]
[394462914,1763602232948,-1206.31879506,0.00016673,2]
[394462915,1763602232959,-649.19577694,0.00016673,2]
[394462916,1763602232975,-9688.27186003,0.00016673,2]
[394462917,1763602232988,-27588.78287738,0.00016673,2]
[394462918,1763602233251,182.88556912,0.00042039,120]
[394462925,1763602238165,312.85945826,0.00042039,120]
[394462926,1763602240098,237.38363656,0.00042039,120]
[394462928,1763602241696,172.68263462,0.00042039,120]
[394462931,1763602243675,-429557.26795537,0.00016673,2]
[394462983,1763602246011,-841.13807281,0.00016673,2]
[394462984,1763602246203,-370.39972155,0.00016673,2]
[394462985,1763602246214,-338.36910381,0.00016673,2]
[394462986,1763602246225,-1405.97081249,0.00016673,2]
[394462987,1763602246238,-499.75862311,0.00016673,2]
[394462988,1763602246249,-720.29999997,0.00016673,2]
[394462989,1763602246406,-9250.0,0.00016673,2]
[394462990,1763602247403,588.13715598,0.00042039,30]
[394462992,1763602255990,169.45,0.00016076,2]
[394462994,1763602259307,180.05284615,0.00042039,120]
[394462995,1763602260871,218.96106563,0.00042039,120]
[394462996,1763602261224,500.0,0.00042039,120]
[394462997,1763602261466,219.44430711,0.00042039,120]
[394462998,1763602265834,185.85539902,0.00042039,30]
[394462999,1763602272835,351.53221419,0.00042039,30]
[394463000,1763602274783,154.28169529,0.00042039,120]
[394463001,1763602280655,174.2813755,0.00042039,120]
[394463003,1763602282384,219.05207905,0.00042039,120]
[394463004,1763602282649,161.37139952,0.00042039,120]
[394463006,1763602285852,159.5130708,0.00042039,120]
[394463009,1763602294897,166.29467246,0.00042039,120]
[394463010,1763602301152,250.08564848,0.00042039,120]
[394463011,1763602301591,214.17751452,0.00042039,120]
[394463013,1763602304887,191.13815724,0.00042039,120]
[394463014,1763602306133,352.33655655,0.00042039,120]
[394463015,1763602310192,500.0,0.00042039,120]
[394463016,1763602310429,500.0,0.00042039,120]
[394463017,1763602310663,393.07582623,0.00042039,120]
[394463022,1763602329382,306.55423369,0.00042039,120]
[394463023,1763602331709,500.0,0.00042039,120]
[394463024,1763602332033,171.05163071,0.00042039,120]
[394463026,1763602336034,541.98180641,0.00042039,120]
[394463027,1763602336216,157.8790204,0.00042039,120]
[394463029,1763602339713,156.55867223,0.00042039,120]
[394463030,1763602339780,254.53222241,0.00042039,30]
[394463031,1763602342716,182.99668141,0.00042039,120]
[394463032,1763602343659,190.69644892,0.00042039,120]
[394463034,1763602350378,217.98778747,0.00042039,120]
[394463035,1763602351328,220.29778944,0.00042039,120]
[394463036,1763602351443,240.53274809,0.00042039,120]
[394463037,1763602351531,500.0,0.00042039,120]
[394463038,1763602351733,572.70121295,0.00042039,120]
[394463039,1763602354789,314.64624545,0.00042039,120]
[394463041,1763602359946,275.87610104,0.00042039,120]
[394463043,1763602366262,500.0,0.00042039,120]
[394463044,1763602366513,174.51383616,0.00042039,120]
[394463049,1763602368960,500.0,0.00042039,120]
[394463050,1763602369096,169.3417488,0.00042039,120]
[394463051,1763602369219,449.24956934,0.00042039,120]
[394463052,1763602372616,250.1265084,0.00042039,120]
[394463053,1763602373130,207.25038455,0.00042039,120]
[394463054,1763602374508,267.88295658,0.00042039,120]
[394463057,1763602377374,177.4827535,0.00042039,120]
[394463058,1763602378950,490.77933316,0.00042039,120]
[394463061,1763602380351,218.20930484,0.00042039,120]
[394463062,1763602381342,160.69610017,0.00042039,120]
[394463064,1763602384877,500.0,0.00042039,120]
[394463065,1763602385167,215.23069679,0.00042039,120]
[394463066,1763602385885,162.67071595,0.00042039,120]
[394463067,1763602386139,234.55247185,0.00042039,120]
[394463069,1763602391277,184.4263453,0.00042039,120]
[394463070,1763602393021,381.44472489,0.00042039,120]
[394463071,1763602394436,521.882991,0.0002986,120]
[394463072,1763602396096,203.27107286,0.00042039,120]
[394463073,1763602396385,175.82422191,0.00042039,120]
[394463074,1763602399741,211.47287756,0.00042039,120]
[394463075,1763602400429,203.66920137,0.00042039,120]
[394463077,1763602402763,500.0,0.0002986,120]
[394463078,1763602403132,500.0,0.0003186,120]
[394463079,1763602403954,233.58107982,0.00042039,120]
[394463080,1763602406626,205.09638963,0.00042039,120]
[394463081,1763602408606,348.75901553,0.00042039,120]
[394463082,1763602412196,389.98772518,0.00042039,120]
[394463083,1763602412229,173.31001568,0.00042039,120]
[394463084,1763602413032,166.48750952,0.00042039,120]
[394463085,1763602414180,161.25791495,0.00042039,90]
[394463087,1763602417571,522.05202016,0.00042039,120]
[394463088,1763602418153,164.72574423,0.00042039,120]
[394463089,1763602418851,291.35406008,0.00042039,120]
[394463091,1763602430589,278.53876341,0.00042039,120]
[394463092,1763602430704,156.97453122,0.00042039,120]
[394463093,1763602435567,159.58534678,0.00042039,120]
[394463094,1763602438446,206.66001051,0.00042039,120]
[394463096,1763602458766,165.97611536,0.00042039,60]
[394463097,1763602586544,207.44875942,0.00042039,120]
[394463098,1763602591874,204.32871579,0.00042039,120]
[394463099,1763602597037,174.12159417,0.00042039,120]
[394463100,1763602598860,201.70691803,0.00042039,120]